[Event "Titled Tuesday Blitz June 27 Early 2023"]
[White "Zaksaite, Salomeja"]
[Black "Rutvij09"]
[WhiteFideId "12801496"]
[WhiteElo "2289"]
[BlackElo "2524"]
[Result "0-1"]
[Round "3"]
[TimeControl "180+2"]
[Date "2023.06.27"]
[WhiteClock "0:00:00"]
[BlackClock "0:02:11"]
[Board "196"]

1. e4 {[%clk 0:02:54]}  e5 {[%clk 0:02:59]} 2. Nf3 {[%clk 0:02:54]}  Nc6 {[%clk 0:02:59]} 3. Bc4 {[%clk 0:02:54]}  Nf6 {[%clk 0:02:59]} 4. d3 {[%clk 0:02:53]}  Be7 {[%clk 0:03:00]} 5. a4 {[%clk 0:02:48]}  d6 {[%clk 0:03:00]} 6. O-O {[%clk 0:02:48]}  O-O {[%clk 0:03:00]} 7. Nbd2 {[%clk 0:02:44]}  Be6 {[%clk 0:02:59]} 8. h3 {[%clk 0:02:44]}  Qd7 {[%clk 0:02:59]} 9. Re1 {[%clk 0:02:43]}  Bxc4 {[%clk 0:02:59]} 10. dxc4 {[%clk 0:02:43]}  Rfe8 {[%clk 0:02:58]} 11. Nf1 {[%clk 0:02:42]}  a6 {[%clk 0:02:56]} 12. a5 {[%clk 0:02:42]}  h6 {[%clk 0:02:53]} 13. Ng3 {[%clk 0:02:41]}  Bf8 {[%clk 0:02:52]} 14. Nf5 {[%clk 0:02:40]}  Kh7 {[%clk 0:02:52]} 15. g4 {[%clk 0:02:19]}  g6 {[%clk 0:02:51]} 16. Ng3 {[%clk 0:02:07]}  Bg7 {[%clk 0:02:49]} 17. Kg2 {[%clk 0:02:00]}  Nd8 {[%clk 0:02:49]} 18. b3 {[%clk 0:01:47]}  Ne6 {[%clk 0:02:49]} 19. c3 {[%clk 0:01:36]}  Nf4+ {[%clk 0:02:30]} 20. Kh2 {[%clk 0:01:27]}  h5 {[%clk 0:02:29]} 21. Ng5+ {[%clk 0:01:20]}  Kg8 {[%clk 0:02:29]} 22. gxh5 {[%clk 0:00:44]}  N6xh5 {[%clk 0:02:25]} 23. Nxh5 {[%clk 0:00:40]}  Nxh5 {[%clk 0:02:26]} 24. Qf3 {[%clk 0:00:40]}  f6 {[%clk 0:02:25]} 25. Rg1 {[%clk 0:00:28]}  Rf8 {[%clk 0:02:16]} 26. Ne6 {[%clk 0:00:16]}  Qxe6 {[%clk 0:02:13]} 27. Rxg6 {[%clk 0:00:16]}  Nf4 {[%clk 0:02:14]} 28. Bxf4 {[%clk 0:00:12]}  exf4 {[%clk 0:02:14]} 29. Rag1 {[%clk 0:00:11]}  Rf7 {[%clk 0:02:14]} 30. Qxf4 {[%clk 0:00:08]}  Qe5 {[%clk 0:02:14]} 31. Kg3 {[%clk 0:00:06]}  Re8 {[%clk 0:02:14]} 32. Kf3 {[%clk 0:00:05]}  Qxf4+ {[%clk 0:02:11]} 33. Kxf4 {[%clk 0:00:00]}  Kh7 {[%clk 0:02:11]} 0-1


[Site "https://www.chess.com"]

[Event "Titled Tuesday Blitz June 27 Early 2023"]
[White "Novik, Maxim"]
[Black "Sarkar, Justin"]
[WhiteFideId "4102924"]
[BlackFideId "2010011"]
[WhiteElo "2517"]
[BlackElo "2258"]
[Result "0-1"]
[Round "3"]
[TimeControl "180+2"]
[Date "2023.06.27"]
[WhiteClock "0:00:32"]
[BlackClock "0:00:01"]
[Board "199"]

1. e4 {[%clk 0:03:00]}  e5 {[%clk 0:02:48]} 2. Nf3 {[%clk 0:03:00]}  Nc6 {[%clk 0:02:48]} 3. Bc4 {[%clk 0:03:00]}  Nf6 {[%clk 0:02:46]} 4. d3 {[%clk 0:03:00]}  Bc5 {[%clk 0:02:46]} 5. c3 {[%clk 0:03:00]}  O-O {[%clk 0:02:43]} 6. O-O {[%clk 0:02:59]}  d6 {[%clk 0:02:41]} 7. b4 {[%clk 0:02:57]}  Bb6 {[%clk 0:02:40]} 8. Bg5 {[%clk 0:02:56]}  h6 {[%clk 0:02:30]} 9. Bh4 {[%clk 0:02:56]}  Bg4 {[%clk 0:02:24]} 10. Nbd2 {[%clk 0:02:53]}  g5 {[%clk 0:02:21]} 11. Bg3 {[%clk 0:02:52]}  Nh5 {[%clk 0:02:16]} 12. Kh1 {[%clk 0:02:28]}  Kg7 {[%clk 0:02:01]} 13. h3 {[%clk 0:02:12]}  Nxg3+ {[%clk 0:01:57]} 14. fxg3 {[%clk 0:02:12]}  Be6 {[%clk 0:01:55]} 15. Nh2 {[%clk 0:02:07]}  d5 {[%clk 0:01:42]} 16. exd5 {[%clk 0:01:51]}  Bxd5 {[%clk 0:01:42]} 17. g4 {[%clk 0:01:42]}  a5 {[%clk 0:01:20]} 18. b5 {[%clk 0:01:40]}  Ne7 {[%clk 0:01:16]} 19. Qe2 {[%clk 0:01:40]}  Ng6 {[%clk 0:01:08]} 20. Ne4 {[%clk 0:01:34]}  Nf4 {[%clk 0:00:58]} 21. Qf3 {[%clk 0:01:33]}  Bxc4 {[%clk 0:00:34]} 22. dxc4 {[%clk 0:01:32]}  Qd3 {[%clk 0:00:33]} 23. c5 {[%clk 0:01:30]}  Ba7 {[%clk 0:00:22]} 24. Rad1 {[%clk 0:01:29]}  Qxf3 {[%clk 0:00:17]} 25. Nxf3 {[%clk 0:01:29]}  f6 {[%clk 0:00:07]} 26. Rd7+ {[%clk 0:01:25]}  Rf7 {[%clk 0:00:07]} 27. Rfd1 {[%clk 0:01:24]}  Ne6 {[%clk 0:00:04]} 28. Rxf7+ {[%clk 0:01:22]}  Kxf7 {[%clk 0:00:04]} 29. Rd7+ {[%clk 0:01:22]}  Kg6 {[%clk 0:00:02]} 30. h4 {[%clk 0:00:55]}  h5 {[%clk 0:00:01]} 31. gxh5+ {[%clk 0:00:52]}  Kxh5 {[%clk 0:00:01]} 32. Nxf6+ {[%clk 0:00:50]}  Kg6 {[%clk 0:00:01]} 33. hxg5 {[%clk 0:00:49]}  Nxg5 {[%clk 0:00:01]} 34. Nxg5 {[%clk 0:00:49]}  Kxg5 {[%clk 0:00:01]} 35. Nd5 {[%clk 0:00:40]}  Bxc5 {[%clk 0:00:01]} 36. Nxc7 {[%clk 0:00:40]}  Rh8+ {[%clk 0:00:01]} 37. Rh7 {[%clk 0:00:32]}  Rxh7# {[%clk 0:00:01]} 0-1


[Site "https://www.chess.com"]

[Event "Titled Tuesday Blitz June 27 Early 2023"]
[White "Zampronha, Wladimir Camilo"]
[Black "Vyatkin, Dmitry"]
[WhiteFideId "2103087"]
[BlackFideId "4171900"]
[WhiteElo "2254"]
[BlackElo "2499"]
[Result "0-1"]
[Round "3"]
[TimeControl "180+2"]
[Date "2023.06.27"]
[WhiteClock "0:00:05"]
[BlackClock "0:00:43"]
[Board "202"]

1. e4 {[%clk 0:02:59]}  e6 {[%clk 0:02:58]} 2. d4 {[%clk 0:02:56]}  d5 {[%clk 0:02:58]} 3. Nc3 {[%clk 0:02:54]}  Nf6 {[%clk 0:02:58]} 4. e5 {[%clk 0:02:44]}  Nfd7 {[%clk 0:02:58]} 5. f4 {[%clk 0:02:44]}  c5 {[%clk 0:02:42]} 6. Nf3 {[%clk 0:02:43]}  Nc6 {[%clk 0:02:41]} 7. Be3 {[%clk 0:02:43]}  a6 {[%clk 0:02:38]} 8. Qd2 {[%clk 0:02:41]}  b5 {[%clk 0:02:38]} 9. a3 {[%clk 0:02:40]}  Bb7 {[%clk 0:02:30]} 10. Be2 {[%clk 0:02:38]}  Qb6 {[%clk 0:02:28]} 11. O-O {[%clk 0:02:35]}  cxd4 {[%clk 0:02:25]} 12. Nxd4 {[%clk 0:02:34]}  Bc5 {[%clk 0:02:25]} 13. Rad1 {[%clk 0:02:26]}  O-O {[%clk 0:02:18]} 14. Bf3 {[%clk 0:01:32]}  Rac8 {[%clk 0:02:16]} 15. Nce2 {[%clk 0:01:26]}  a5 {[%clk 0:02:08]} 16. Kh1 {[%clk 0:01:25]}  b4 {[%clk 0:02:04]} 17. a4 {[%clk 0:01:24]}  Ba6 {[%clk 0:02:03]} 18. Rfe1 {[%clk 0:01:18]}  Bxe2 {[%clk 0:01:48]} 19. Rxe2 {[%clk 0:01:15]}  Nxd4 {[%clk 0:01:41]} 20. Bxd4 {[%clk 0:01:15]}  Qc6 {[%clk 0:01:41]} 21. Bxc5 {[%clk 0:01:07]}  Nxc5 {[%clk 0:01:41]} 22. b3 {[%clk 0:01:02]}  Nd7 {[%clk 0:01:36]} 23. Qd4 {[%clk 0:01:00]}  Qc5 {[%clk 0:01:31]} 24. Qxc5 {[%clk 0:00:58]}  Rxc5 {[%clk 0:01:31]} 25. Rdd2 {[%clk 0:00:52]}  Rfc8 {[%clk 0:01:28]} 26. Rf2 {[%clk 0:00:49]}  Rc3 {[%clk 0:01:27]} 27. Bd1 {[%clk 0:00:48]}  Nc5 {[%clk 0:01:21]} 28. Bf3 {[%clk 0:00:44]}  Re3 {[%clk 0:01:19]} 29. Rfe2 {[%clk 0:00:41]}  Nxb3 {[%clk 0:01:10]} 30. Rxe3 {[%clk 0:00:19]}  Nxd2 {[%clk 0:01:10]} 31. Bd1 {[%clk 0:00:19]}  Ne4 {[%clk 0:00:43]} 32. Kg1 {[%clk 0:00:05]}  Nc3 {[%clk 0:00:43]} 0-1


[Site "https://www.chess.com"]

[Event "Titled Tuesday Blitz June 27 Early 2023"]
[White "Fudalej, Michal"]
[Black "Womacka, Mathias"]
[WhiteFideId "1118781"]
[BlackFideId "4611390"]
[WhiteElo "2246"]
[BlackElo "2492"]
[Result "1-0"]
[Round "3"]
[TimeControl "180+2"]
[Date "2023.06.27"]
[WhiteClock "0:00:01"]
[BlackClock "0:00:00"]
[Board "203"]

1. Nf3 {[%clk 0:03:00]}  c5 {[%clk 0:02:59]} 2. c4 {[%clk 0:02:59]}  Nf6 {[%clk 0:02:58]} 3. Nc3 {[%clk 0:02:59]}  e6 {[%clk 0:02:57]} 4. g3 {[%clk 0:02:59]}  b6 {[%clk 0:02:58]} 5. Bg2 {[%clk 0:02:59]}  Bb7 {[%clk 0:02:58]} 6. O-O {[%clk 0:02:59]}  Be7 {[%clk 0:02:58]} 7. e3 {[%clk 0:02:59]}  O-O {[%clk 0:02:56]} 8. b3 {[%clk 0:03:00]}  d5 {[%clk 0:02:55]} 9. Bb2 {[%clk 0:02:58]}  Nc6 {[%clk 0:02:44]} 10. cxd5 {[%clk 0:02:58]}  exd5 {[%clk 0:02:31]} 11. d4 {[%clk 0:02:57]}  Ba6 {[%clk 0:02:26]} 12. Re1 {[%clk 0:02:50]}  c4 {[%clk 0:02:27]} 13. Ne5 {[%clk 0:02:41]}  Rc8 {[%clk 0:02:26]} 14. bxc4 {[%clk 0:02:39]}  Bxc4 {[%clk 0:02:10]} 15. Nxc4 {[%clk 0:02:35]}  dxc4 {[%clk 0:02:10]} 16. Rc1 {[%clk 0:01:23]}  a6 {[%clk 0:02:01]} 17. a3 {[%clk 0:01:07]}  b5 {[%clk 0:01:58]} 18. d5 {[%clk 0:01:07]}  Ne5 {[%clk 0:01:51]} 19. Bf1 {[%clk 0:01:03]}  Bd6 {[%clk 0:01:20]} 20. e4 {[%clk 0:01:03]}  Re8 {[%clk 0:01:14]} 21. h3 {[%clk 0:00:54]}  Qb6 {[%clk 0:01:08]} 22. Kg2 {[%clk 0:00:46]}  Bc5 {[%clk 0:01:07]} 23. f4 {[%clk 0:00:36]}  Ng6 {[%clk 0:00:36]} 24. e5 {[%clk 0:00:36]}  Nd7 {[%clk 0:00:36]} 25. Ne4 {[%clk 0:00:34]}  Bf8 {[%clk 0:00:21]} 26. d6 {[%clk 0:00:29]}  Qb7 {[%clk 0:00:19]} 27. Kh2 {[%clk 0:00:26]}  a5 {[%clk 0:00:18]} 28. Bg2 {[%clk 0:00:26]}  Qb6 {[%clk 0:00:17]} 29. Bd4 {[%clk 0:00:26]}  Qa6 {[%clk 0:00:17]} 30. h4 {[%clk 0:00:23]}  b4 {[%clk 0:00:12]} 31. h5 {[%clk 0:00:23]}  Ngxe5 {[%clk 0:00:12]} 32. fxe5 {[%clk 0:00:22]}  Nxe5 {[%clk 0:00:12]} 33. Nc5 {[%clk 0:00:20]}  Qxd6 {[%clk 0:00:08]} 34. Bxe5 {[%clk 0:00:17]}  Qxc5 {[%clk 0:00:08]} 35. axb4 {[%clk 0:00:13]}  axb4 {[%clk 0:00:07]} 36. Bd4 {[%clk 0:00:10]}  Qg5 {[%clk 0:00:07]} 37. Qf3 {[%clk 0:00:08]}  Rxe1 {[%clk 0:00:06]} 38. Rxe1 {[%clk 0:00:07]}  c3 {[%clk 0:00:07]} 39. Bh3 {[%clk 0:00:06]}  Rd8 {[%clk 0:00:05]} 40. Be3 {[%clk 0:00:06]}  Qb5 {[%clk 0:00:04]} 41. Rf1 {[%clk 0:00:05]}  Rd7 {[%clk 0:00:03]} 42. Bxd7 {[%clk 0:00:05]}  Qxd7 {[%clk 0:00:04]} 43. Qa8 {[%clk 0:00:04]}  Qc7 {[%clk 0:00:01]} 44. Bf4 {[%clk 0:00:03]}  Qc5 {[%clk 0:00:00]} 45. Qe4 {[%clk 0:00:01]} 1-0


[Site "https://www.chess.com"]

[Event "Titled Tuesday Blitz June 27 Early 2023"]
[White "Eynullayev, Altay"]
[Black "EdmundPlayer"]
[WhiteFideId "13413562"]
[WhiteElo "2491"]
[BlackElo "2243"]
[Result "0-1"]
[Round "3"]
[TimeControl "180+2"]
[Date "2023.06.27"]
[WhiteClock "0:00:02"]
[BlackClock "0:00:05"]
[Board "204"]

1. e4 {[%clk 0:03:00]}  e5 {[%clk 0:02:58]} 2. Nf3 {[%clk 0:03:00]}  Nc6 {[%clk 0:02:58]} 3. Bb5 {[%clk 0:03:00]}  a6 {[%clk 0:02:57]} 4. Ba4 {[%clk 0:03:00]}  Nf6 {[%clk 0:02:56]} 5. O-O {[%clk 0:03:00]}  Nxe4 {[%clk 0:02:56]} 6. d4 {[%clk 0:02:59]}  b5 {[%clk 0:02:56]} 7. Bb3 {[%clk 0:02:59]}  d5 {[%clk 0:02:56]} 8. dxe5 {[%clk 0:02:59]}  Be6 {[%clk 0:02:56]} 9. Be3 {[%clk 0:02:59]}  Nc5 {[%clk 0:02:50]} 10. Nc3 {[%clk 0:02:58]}  Nxb3 {[%clk 0:02:43]} 11. axb3 {[%clk 0:02:58]}  Be7 {[%clk 0:02:41]} 12. Qd2 {[%clk 0:02:46]}  b4 {[%clk 0:02:20]} 13. Na4 {[%clk 0:02:41]}  O-O {[%clk 0:02:17]} 14. Bc5 {[%clk 0:02:35]}  Bg4 {[%clk 0:01:55]} 15. Bxe7 {[%clk 0:02:16]}  Qxe7 {[%clk 0:01:43]} 16. Qxd5 {[%clk 0:02:13]}  Bxf3 {[%clk 0:01:40]} 17. Qxf3 {[%clk 0:02:13]}  Nxe5 {[%clk 0:01:38]} 18. Qe3 {[%clk 0:02:09]}  Qf6 {[%clk 0:01:28]} 19. Nc5 {[%clk 0:01:55]}  Rfe8 {[%clk 0:00:57]} 20. Rfe1 {[%clk 0:01:54]}  h5 {[%clk 0:00:39]} 21. h3 {[%clk 0:01:27]}  a5 {[%clk 0:00:22]} 22. Rad1 {[%clk 0:01:10]}  Re7 {[%clk 0:00:20]} 23. Nd3 {[%clk 0:00:22]}  Rae8 {[%clk 0:00:20]} 24. Nxe5 {[%clk 0:00:06]}  Rxe5 {[%clk 0:00:19]} 25. Qd2 {[%clk 0:00:07]}  Rxe1+ {[%clk 0:00:18]} 26. Rxe1 {[%clk 0:00:07]}  Rxe1+ {[%clk 0:00:18]} 27. Qxe1 {[%clk 0:00:08]}  Qxb2 {[%clk 0:00:18]} 28. Qe8+ {[%clk 0:00:09]}  Kh7 {[%clk 0:00:18]} 29. Qxf7 {[%clk 0:00:09]}  Qe5 {[%clk 0:00:09]} 30. g3 {[%clk 0:00:06]}  Qe1+ {[%clk 0:00:08]} 31. Kg2 {[%clk 0:00:07]}  Qe4+ {[%clk 0:00:08]} 32. Kh2 {[%clk 0:00:06]}  Qe5 {[%clk 0:00:08]} 33. Qf3 {[%clk 0:00:06]}  Kh6 {[%clk 0:00:07]} 34. Qd3 {[%clk 0:00:06]}  g6 {[%clk 0:00:06]} 35. h4 {[%clk 0:00:06]}  Kg7 {[%clk 0:00:06]} 36. Qd7+ {[%clk 0:00:06]}  Kf6 {[%clk 0:00:05]} 37. Qd3 {[%clk 0:00:06]}  Kf7 {[%clk 0:00:04]} 38. Kg2 {[%clk 0:00:07]}  Kf6 {[%clk 0:00:04]} 39. Qf3+ {[%clk 0:00:07]}  Qf5 {[%clk 0:00:03]} 40. Qc6+ {[%clk 0:00:07]}  Qe6 {[%clk 0:00:03]} 41. Qxc7 {[%clk 0:00:08]}  Qe4+ {[%clk 0:00:03]} 42. Kh2 {[%clk 0:00:08]}  Qd5 {[%clk 0:00:03]} 43. Qf4+ {[%clk 0:00:08]}  Kg7 {[%clk 0:00:03]} 44. Qc7+ {[%clk 0:00:08]}  Kh6 {[%clk 0:00:04]} 45. Qf4+ {[%clk 0:00:07]}  Kg7 {[%clk 0:00:04]} 46. Qe3 {[%clk 0:00:08]}  Qb5 {[%clk 0:00:03]} 47. Kg1 {[%clk 0:00:07]}  Qd5 {[%clk 0:00:04]} 48. Kf1 {[%clk 0:00:07]}  Qd1+ {[%clk 0:00:04]} 49. Kg2 {[%clk 0:00:08]}  Qxc2 {[%clk 0:00:05]} 50. Qe7+ {[%clk 0:00:07]}  Kh6 {[%clk 0:00:05]} 51. Qg5+ {[%clk 0:00:07]}  Kg7 {[%clk 0:00:06]} 52. Qe5+ {[%clk 0:00:07]}  Kh6 {[%clk 0:00:06]} 53. Qd5 {[%clk 0:00:07]}  Kg7 {[%clk 0:00:05]} 54. Kf3 {[%clk 0:00:06]}  Kh6 {[%clk 0:00:06]} 55. Ke3 {[%clk 0:00:06]}  Qc3+ {[%clk 0:00:05]} 56. Ke4 {[%clk 0:00:06]}  Qe1+ {[%clk 0:00:05]} 57. Kf3 {[%clk 0:00:02]}  Qh1+ {[%clk 0:00:05]} 0-1


[Site "https://www.chess.com"]

[Event "Titled Tuesday Blitz June 27 Early 2023"]
[White "Tuleyeva-Aketayeva, Dana"]
[Black "Navalgund, Niranjan"]
[WhiteFideId "13701932"]
[BlackFideId "5030854"]
[WhiteElo "2241"]
[BlackElo "2487"]
[Result "0-1"]
[Round "3"]
[TimeControl "180+2"]
[Date "2023.06.27"]
[WhiteClock "0:00:00"]
[BlackClock "0:01:23"]
[Board "205"]

1. d4 {[%clk 0:03:00]}  Nf6 {[%clk 0:02:50]} 2. Nf3 {[%clk 0:03:01]}  Rg8 {[%clk 0:02:50]} 3. g3 {[%clk 0:02:59]}  h6 {[%clk 0:02:50]} 4. Bg2 {[%clk 0:02:59]}  g5 {[%clk 0:02:50]} 5. O-O {[%clk 0:02:57]}  e6 {[%clk 0:02:49]} 6. c4 {[%clk 0:02:57]}  Be7 {[%clk 0:02:50]} 7. Nc3 {[%clk 0:02:57]}  d5 {[%clk 0:02:50]} 8. cxd5 {[%clk 0:02:55]}  Nxd5 {[%clk 0:02:51]} 9. e4 {[%clk 0:02:52]}  Nxc3 {[%clk 0:02:51]} 10. bxc3 {[%clk 0:02:53]}  b6 {[%clk 0:02:50]} 11. d5 {[%clk 0:02:52]}  Bb7 {[%clk 0:02:46]} 12. dxe6 {[%clk 0:02:50]}  fxe6 {[%clk 0:02:46]} 13. Nd4 {[%clk 0:02:49]}  e5 {[%clk 0:02:46]} 14. Nf5 {[%clk 0:02:49]}  Qxd1 {[%clk 0:02:44]} 15. Rxd1 {[%clk 0:02:46]}  Bf8 {[%clk 0:02:44]} 16. Bf3 {[%clk 0:02:37]}  Nd7 {[%clk 0:02:45]} 17. Bh5+ {[%clk 0:02:34]}  Kd8 {[%clk 0:02:45]} 18. Bf7 {[%clk 0:02:30]}  Rh8 {[%clk 0:02:44]} 19. Be6 {[%clk 0:02:30]}  Rh7 {[%clk 0:02:42]} 20. f3 {[%clk 0:02:12]}  Bc5+ {[%clk 0:02:41]} 21. Be3 {[%clk 0:02:09]}  Bxe3+ {[%clk 0:02:40]} 22. Nxe3 {[%clk 0:02:10]}  Bc6 {[%clk 0:02:40]} 23. Nc4 {[%clk 0:02:05]}  Ke7 {[%clk 0:02:36]} 24. Bxd7 {[%clk 0:02:01]}  Bxd7 {[%clk 0:02:37]} 25. Nxe5 {[%clk 0:02:00]}  Be8 {[%clk 0:02:15]} 26. Rd2 {[%clk 0:01:42]}  Ke6 {[%clk 0:02:12]} 27. Nc4 {[%clk 0:01:36]}  Bb5 {[%clk 0:02:12]} 28. Ne3 {[%clk 0:01:35]}  Rf7 {[%clk 0:02:12]} 29. Kg2 {[%clk 0:01:34]}  Ba4 {[%clk 0:02:12]} 30. Nf5 {[%clk 0:01:29]}  h5 {[%clk 0:02:11]} 31. Nd4+ {[%clk 0:01:27]}  Ke5 {[%clk 0:02:11]} 32. Nb3 {[%clk 0:01:22]}  Rd7 {[%clk 0:02:08]} 33. Rad1 {[%clk 0:01:18]}  Rxd2+ {[%clk 0:02:08]} 34. Rxd2 {[%clk 0:01:19]}  c6 {[%clk 0:02:08]} 35. Rd4 {[%clk 0:01:10]}  Bxb3 {[%clk 0:02:03]} 36. axb3 {[%clk 0:01:11]}  a5 {[%clk 0:02:04]} 37. Kf2 {[%clk 0:00:54]}  b5 {[%clk 0:02:03]} 38. Ke3 {[%clk 0:00:51]}  a4 {[%clk 0:02:02]} 39. f4+ {[%clk 0:00:52]}  Ke6 {[%clk 0:02:02]} 40. bxa4 {[%clk 0:00:49]}  bxa4 {[%clk 0:02:02]} 41. Rd2 {[%clk 0:00:49]}  gxf4+ {[%clk 0:01:55]} 42. gxf4 {[%clk 0:00:40]}  a3 {[%clk 0:01:55]} 43. Ra2 {[%clk 0:00:41]}  c5 {[%clk 0:01:56]} 44. Kd3 {[%clk 0:00:39]}  Ra4 {[%clk 0:01:56]} 45. Ke3 {[%clk 0:00:37]}  Kf6 {[%clk 0:01:54]} 46. Kf3 {[%clk 0:00:34]}  Kg6 {[%clk 0:01:54]} 47. Kg3 {[%clk 0:00:34]}  Kh6 {[%clk 0:01:53]} 48. e5 {[%clk 0:00:33]}  Kg6 {[%clk 0:01:53]} 49. Kf3 {[%clk 0:00:31]}  Kf5 {[%clk 0:01:53]} 50. Ke3 {[%clk 0:00:29]}  h4 {[%clk 0:01:50]} 51. h3 {[%clk 0:00:24]}  Re4+ {[%clk 0:01:49]} 52. Kd3 {[%clk 0:00:20]}  c4+ {[%clk 0:01:49]} 53. Kc2 {[%clk 0:00:16]}  Re2+ {[%clk 0:01:46]} 54. Kb1 {[%clk 0:00:16]}  Re3 {[%clk 0:01:44]} 55. Rxa3 {[%clk 0:00:13]}  Kxf4 {[%clk 0:01:45]} 56. Ra4 {[%clk 0:00:11]}  Rxh3 {[%clk 0:01:36]} 57. e6 {[%clk 0:00:09]}  Rxc3 {[%clk 0:01:35]} 58. e7 {[%clk 0:00:07]}  Re3 {[%clk 0:01:35]} 59. Rxc4+ {[%clk 0:00:06]}  Kg3 {[%clk 0:01:35]} 60. Rc7 {[%clk 0:00:03]}  h3 {[%clk 0:01:36]} 61. Kc2 {[%clk 0:00:03]}  h2 {[%clk 0:01:36]} 62. e8=Q {[%clk 0:00:02]}  Rxe8 {[%clk 0:01:35]} 63. Rg7+ {[%clk 0:00:03]}  Kf2 {[%clk 0:01:34]} 64. Rf7+ {[%clk 0:00:03]}  Kg1 {[%clk 0:01:34]} 65. Rg7+ {[%clk 0:00:04]}  Kh1 {[%clk 0:01:34]} 66. Kd2 {[%clk 0:00:03]}  Re6 {[%clk 0:01:31]} 67. Kd1 {[%clk 0:00:03]}  Re4 {[%clk 0:01:31]} 68. Kd2 {[%clk 0:00:03]}  Re8 {[%clk 0:01:27]} 69. Kd1 {[%clk 0:00:03]}  Ra8 {[%clk 0:01:23]} 70. Ke2 {[%clk 0:00:03]}  Ra1 {[%clk 0:01:22]} 71. Kf2 {[%clk 0:00:03]}  Rg1 {[%clk 0:01:22]} 72. Rh7 {[%clk 0:00:02]}  Rg6 {[%clk 0:01:22]} 73. Rh4 {[%clk 0:00:01]}  Rf6+ {[%clk 0:01:23]} 74. Ke1 {[%clk 0:00:00]}  Kg2 {[%clk 0:01:23]} 0-1


[Site "https://www.chess.com"]

[Event "Titled Tuesday Blitz June 27 Early 2023"]
[White "Zuriel, Marisa"]
[Black "Tokman, Ariel"]
[WhiteFideId "109142"]
[BlackFideId "117420"]
[WhiteElo "2226"]
[BlackElo "2464"]
[Result "0-1"]
[Round "3"]
[TimeControl "180+2"]
[Date "2023.06.27"]
[WhiteClock "0:01:32"]
[BlackClock "0:01:05"]
[Board "208"]

1. e4 {[%clk 0:03:00]}  d6 {[%clk 0:02:58]} 2. d4 {[%clk 0:03:00]}  Nf6 {[%clk 0:02:59]} 3. Nc3 {[%clk 0:03:00]}  Nbd7 {[%clk 0:02:59]} 4. e5 {[%clk 0:02:55]}  dxe5 {[%clk 0:02:58]} 5. dxe5 {[%clk 0:02:50]}  Nxe5 {[%clk 0:02:59]} 6. Qe2 {[%clk 0:02:45]}  Nc6 {[%clk 0:02:51]} 7. Bd2 {[%clk 0:02:41]}  e6 {[%clk 0:02:50]} 8. O-O-O {[%clk 0:02:41]}  Bd7 {[%clk 0:02:42]} 9. f4 {[%clk 0:02:36]}  Bd6 {[%clk 0:02:40]} 10. Nf3 {[%clk 0:02:36]}  Qe7 {[%clk 0:02:41]} 11. Ne5 {[%clk 0:02:36]}  O-O-O {[%clk 0:02:34]} 12. g3 {[%clk 0:02:30]}  Nd5 {[%clk 0:02:23]} 13. Bg2 {[%clk 0:02:25]}  Nxc3 {[%clk 0:02:19]} 14. Bxc3 {[%clk 0:02:25]}  Nxe5 {[%clk 0:02:19]} 15. fxe5 {[%clk 0:02:24]}  Bc5 {[%clk 0:02:17]} 16. Rhf1 {[%clk 0:02:12]}  a6 {[%clk 0:01:41]} 17. Qg4 {[%clk 0:02:01]}  Bb5 {[%clk 0:01:35]} 18. Rfe1 {[%clk 0:01:56]}  g6 {[%clk 0:01:33]} 19. Kb1 {[%clk 0:01:54]}  Rxd1+ {[%clk 0:01:30]} 20. Rxd1 {[%clk 0:01:54]}  Rd8 {[%clk 0:01:30]} 21. a3 {[%clk 0:01:51]}  Rxd1+ {[%clk 0:01:26]} 22. Qxd1 {[%clk 0:01:51]}  Qd7 {[%clk 0:01:26]} 23. Qf3 {[%clk 0:01:50]}  Bc6 {[%clk 0:01:25]} 24. Qf1 {[%clk 0:01:50]}  Bxg2 {[%clk 0:01:20]} 25. Qxg2 {[%clk 0:01:50]}  Qd1+ {[%clk 0:01:18]} 26. Ka2 {[%clk 0:01:49]}  Qd5+ {[%clk 0:01:18]} 27. Qxd5 {[%clk 0:01:47]}  exd5 {[%clk 0:01:19]} 28. b4 {[%clk 0:01:45]}  Bg1 {[%clk 0:01:18]} 29. h3 {[%clk 0:01:45]}  Kd7 {[%clk 0:01:16]} 30. Kb3 {[%clk 0:01:42]}  Ke6 {[%clk 0:01:16]} 31. b5 {[%clk 0:01:39]}  axb5 {[%clk 0:01:15]} 32. Kb4 {[%clk 0:01:39]}  c6 {[%clk 0:01:14]} 33. Ka5 {[%clk 0:01:39]}  Bc5 {[%clk 0:01:12]} 34. g4 {[%clk 0:01:38]}  d4 {[%clk 0:01:09]} 35. Bb4 {[%clk 0:01:36]}  Bxb4+ {[%clk 0:01:06]} 36. axb4 {[%clk 0:01:36]}  Kxe5 {[%clk 0:01:06]} 37. Kb6 {[%clk 0:01:36]}  f5 {[%clk 0:01:05]} 38. Kxb7 {[%clk 0:01:32]}  Kd5 {[%clk 0:01:05]} 0-1


[Site "https://www.chess.com"]

[Event "Titled Tuesday Blitz June 27 Early 2023"]
[White "gueraumasague"]
[Black "Vila Dupla, Aurelio"]
[BlackFideId "2203383"]
[WhiteElo "2455"]
[BlackElo "2217"]
[Result "1-0"]
[Round "3"]
[TimeControl "180+2"]
[Date "2023.06.27"]
[WhiteClock "0:00:18"]
[BlackClock "0:00:00"]
[Board "209"]

1. e4 {[%clk 0:03:00]}  c5 {[%clk 0:02:58]} 2. Nc3 {[%clk 0:03:01]}  d6 {[%clk 0:02:58]} 3. Bb5+ {[%clk 0:03:02]}  Nd7 {[%clk 0:02:55]} 4. a4 {[%clk 0:03:02]}  Nf6 {[%clk 0:02:54]} 5. f4 {[%clk 0:03:01]}  a6 {[%clk 0:02:51]} 6. Bc4 {[%clk 0:03:01]}  e6 {[%clk 0:02:49]} 7. Nf3 {[%clk 0:03:00]}  Be7 {[%clk 0:02:49]} 8. d3 {[%clk 0:02:56]}  O-O {[%clk 0:02:48]} 9. O-O {[%clk 0:02:55]}  b6 {[%clk 0:02:48]} 10. Qe1 {[%clk 0:02:36]}  Bb7 {[%clk 0:02:47]} 11. Qg3 {[%clk 0:02:33]}  d5 {[%clk 0:02:31]} 12. exd5 {[%clk 0:02:33]}  Nxd5 {[%clk 0:02:31]} 13. Ne4 {[%clk 0:02:17]}  N7f6 {[%clk 0:02:18]} 14. c3 {[%clk 0:02:11]}  Qd7 {[%clk 0:02:02]} 15. Ne5 {[%clk 0:02:10]}  Qe8 {[%clk 0:02:01]} 16. f5 {[%clk 0:01:56]}  b5 {[%clk 0:01:53]} 17. Bxd5 {[%clk 0:01:43]}  Bxd5 {[%clk 0:01:52]} 18. Bh6 {[%clk 0:01:43]}  g6 {[%clk 0:01:25]} 19. fxe6 {[%clk 0:01:30]}  Nxe4 {[%clk 0:01:00]} 20. dxe4 {[%clk 0:01:02]}  Bxe6 {[%clk 0:00:58]} 21. Ng4 {[%clk 0:00:31]}  Bxg4 {[%clk 0:00:16]} 22. Qxg4 {[%clk 0:00:32]}  bxa4 {[%clk 0:00:15]} 23. e5 {[%clk 0:00:29]}  Qc8 {[%clk 0:00:13]} 24. Qc4 {[%clk 0:00:24]}  Qe6 {[%clk 0:00:06]} 25. Qxe6 {[%clk 0:00:23]}  fxe6 {[%clk 0:00:07]} 26. Bxf8 {[%clk 0:00:24]}  Bxf8 {[%clk 0:00:07]} 27. Rxa4 {[%clk 0:00:24]}  Rb8 {[%clk 0:00:06]} 28. Rf2 {[%clk 0:00:22]}  Rb6 {[%clk 0:00:05]} 29. Rd2 {[%clk 0:00:22]}  Kf7 {[%clk 0:00:04]} 30. Rd7+ {[%clk 0:00:22]}  Kg8 {[%clk 0:00:00]} 31. Rf4 {[%clk 0:00:18]} 1-0


[Site "https://www.chess.com"]